[Event "Queens Festival Final-A 2022"]
[Site "Tornelo"]
[Date "2022.06.25"]
[Round "3.2"]
[White "Song, Yuxin"]
[Black "Ismayil, Malak"]
[Result "1-0"]
[ECO "C78"]
[WhiteElo "2317"]
[BlackElo "2001"]
[Annotator "TA"]
[PlyCount "57"]
[EventDate "2022.06.24"]
[EventType "tourn"]
[EventCountry "NET"]
[SourceTitle "playchess.com"]
[Source "ChessBase"]
[SourceQuality "1"]
[TimeControl "180+2"]

{[%evp 19,57,22,30,38,35,-2,0,-18,95,91,358,365,357,351,366,355,335,372,370,367,499,460,456,447,560,558,554,545,659,679,704,702,672,467,451,411,527,457,445,431]} 1. e4 {[%emt 0:00:02]} e5 {[%emt 0:00:05]} 2. Nf3 {[%emt 0:00:01]} Nc6 {[%emt 0:00:02]} 3. Bb5 {[%emt 0:00:02]} a6 {[%emt 0:00:02]} 4. Ba4 {[%emt 0:00:01]} Nf6 {[%emt 0:00:02]} 5. O-O {[%emt 0:00:01]} b5 {[%emt 0:00:05]} 6. Bb3 {[%emt 0:00:02]} Bc5 {[%emt 0:00:11]} 7. c3 {[%emt 0:00:02]} d6 {[%emt 0:00:04]} 8. d4 {[%emt 0:00:01]} Bb6 {[%emt 0:00:05]} 9. a4 {[%emt 0:00:01]} Rb8 {[%emt 0:00:11]} 10. axb5 {[%emt 0:00:02]} axb5 {[%emt 0:00:02]} 11. Qd3 {[%emt 0:00:01] C78: Ruy Lopez: Archangelsk and Möller Defences.} Bd7 {[%emt 0:00:08] is the legacy move (11...0-0).} 12. Bg5 {[%emt 0:00:04]} ({Don't blunder} 12. Qxb5 $2 Nxd4 $1 {[%mdl 512]} 13. Bxf7+ Kxf7 $19) 12... h6 {[%emt 0:00:03]} 13. Bh4 {[%emt 0:00:17] The position is equal.} O-O {[%emt 0:00:01] [#]} (13... exd4 $1 $11 14. Nxd4 Ne5) 14. dxe5 $146 {[%emt 0:00:15]} ({Predecessor:} 14. Nbd2 Qe8 15. Bxf6 gxf6 16. Rfe1 Kh7 17. Nf1 Ne7 18. Ng3 Rg8 19. Nh5 Kg6 20. Bd1 {1-0 (39) Savicevic,V (2284)-Ivanovic,M (2294) Paracin 2022}) 14... Nxe5 {[%emt 0:00:11][%mdl 8192] A mistake that costs the game.} (14... dxe5 $16 15. Bxf6 gxf6) 15. Nxe5 $18 {[%emt 0:00:03]} dxe5 {[%emt 0:00:02]} 16. Bxf6 {[%emt 0:00:16]} gxf6 {[%emt 0:00:04] [#]} 17. Rd1 $1 {[%emt 0:00:07]} Bg4 {[%emt 0:00:07]} 18. Qg3 {[%emt 0:00:02]} Qc8 {[%emt 0:00:08]} 19. h3 {[%emt 0:00:03]} Kh7 {[%emt 0:00:03]} 20. Qxg4 {[%emt 0:00:08]} Qxg4 {[%emt 0:00:14]} 21. hxg4 {[%emt 0:00:02]} Rg8 {[%emt 0:00:02]} 22. Bxf7 {[%emt 0:00:06]} Rxg4 {[%emt 0:00:02]} 23. Be6 {[%emt 0:00:02]} Rf4 {[%emt 0:00:06]} 24. Bf5+ {[%emt 0:00:17]} Kh8 {[%emt 0:00:03]} 25. Rd2 {[%emt 0:00:02]} Rg8 {[%emt 0:00:07]} 26. Be6 {[%emt 0:00:09][%cal Bf5e6,Be6d5,Bd5a8][%mdl 32]} Re8 {[%emt 0:00:12]} 27. Bd5 {[%emt 0:00:03]} Rd8 {[%emt 0:00:05]} 28. Ra8 {[%emt 0:00:06]} Rxa8 {[%emt 0:00:03]} 29. Bxa8 {[%emt 0:00:01] Weighted Error Value: White=0.25 (precise) /Black=0.78} 1-0

[Event "Queens Festival Final-A 2022"]
[Site "Tornelo"]
[Date "2022.06.25"]
[Round "3.3"]
[White "Gueci, Tea"]
[Black "Castrillon Gomez, Melissa"]
[Result "1/2-1/2"]
[ECO "B31"]
[WhiteElo "2248"]
[BlackElo "2198"]
[Annotator "TA"]
[PlyCount "111"]
[EventDate "2022.06.24"]
[EventType "tourn"]
[EventCountry "NET"]
[SourceTitle "playchess.com"]
[Source "ChessBase"]
[SourceQuality "1"]
[TimeControl "180+2"]

{[%evp 17,111,2,33,-12,-12,0,34,31,36,34,38,24,35,-35,0,0,0,0,20,-10,0,-13,-18,-41,-11,-12,-14,-12,-12,-144,0,0,0,0,0,0,0,0,0,-6,-6,-12,-11,-15,0,0,32,0,55,0,0,0,0,0,0,0,0,0,0,0,0,0,0,0,0,0,0,0,0,0,4,4,4,4,4,4,4,4,4,4,4,4,4,4,4,4,4,4,4,4,4,0,4,0,11,0]} 1. e4 {[%emt 0:00:02]} c5 {[%emt 0:00:05]} 2. Nf3 {[%emt 0:00:02]} Nc6 {[%emt 0:00:01]} 3. Bb5 {[%emt 0:00:01]} g6 {[%emt 0:00:02]} 4. c3 {[%emt 0:00:01]} Nf6 {[%emt 0:00:02]} 5. Qe2 {[%emt 0:00:01]} Bg7 {[%emt 0:00:07]} 6. O-O {[%emt 0:00:05]} O-O {[%emt 0:00:01]} 7. d4 {[%emt 0:00:03]} cxd4 {[%emt 0:00:13]} 8. cxd4 {[%emt 0:00:00]} d5 {[%emt 0:00:01]} 9. e5 {[%emt 0:00:01]} Ne8 {[%emt 0:00:13]} 10. Nc3 {[%emt 0:00:31] B31: Sicilian: 2...Nc6 3 Bb5 g6.} Bg4 {[%emt 0:00:03]} 11. Be3 {[%emt 0:00:22] [#]} Rc8 $146 {[%emt 0:00:27]} ({Predecessor:} 11... Nc7 12. Ba4 Kh8 13. Rac1 Ne6 14. Rfd1 Na5 15. h3 Bxf3 16. Qxf3 Nc4 17. Bb3 Nxb2 {1-0 (54) Uwira,O-Forgach,A Bergen Enkheim 1997}) 12. h3 {[%emt 0:00:03] White is slightly better.} Bxf3 {[%emt 0:00:02]} 13. Qxf3 {[%emt 0:00:02]} ({Don't play} 13. gxf3 a6 14. Bd3 Nb4 $11) 13... e6 {[%emt 0:00:14]} 14. Rfd1 {[%emt 0:00:15]} f6 {[%emt 0:00:02]} 15. exf6 {[%emt 0:00:03]} ({Better is} 15. Qg4 $14 Qd7 16. f4) 15... Nxf6 {[%emt 0:00:18][%cal Be8f6,Bf6h5,Bh5f4][%mdl 32]} 16. Qe2 {[%emt 0:00:08]} Qd7 {[%emt 0:00:12]} 17. Rac1 {[%emt 0:00:12]} Qf7 {[%emt 0:00:02]} 18. Ba4 {[%emt 0:00:20]} Ne7 {[%emt 0:00:04][%cal Bc6e7,Be7f5,Bf5e3][%mdl 32]} 19. Bb3 {[%emt 0:00:14]} Nf5 {[%emt 0:00:04]} 20. Bf4 {[%emt 0:00:18]} Nh5 {[%emt 0:00:15]} (20... Nd7 $5 {[%cal Rf5d4]} 21. Be3 Nb6 $15) 21. Be3 {[%emt 0:00:17]} Nxe3 {[%emt 0:00:04]} 22. Qxe3 {[%emt 0:00:00]} Nf4 {[%emt 0:00:16]} 23. Ne2 {[%emt 0:00:02]} (23. Rc2 $11) 23... Bh6 {[%emt 0:00:08]} (23... Nxe2+ $17 24. Qxe2 Rxc1 25. Rxc1 Bxd4) 24. Rxc8 $11 {[%emt 0:00:07]} Rxc8 {[%emt 0:00:14]} 25. Nxf4 {[%emt 0:00:06]} Bxf4 {[%emt 0:00:03]} 26. Qe2 {[%emt 0:00:01]} Rc1 {[%emt 0:00:15]} 27. Rxc1 {[%emt 0:00:06]} Bxc1 {[%emt 0:00:01][%mdl 4096] Endgame KQB-KQB} 28. Qc2 {[%emt 0:00:01]} Bg5 {[%emt 0:00:05]} 29. Ba4 {[%emt 0:00:05]} Kg7 {[%emt 0:00:10]} 30. g3 {[%emt 0:00:05] Prevents Qf4.} Kh6 {[%emt 0:00:05]} 31. Qc8 {[%emt 0:00:08]} Qf5 {[%emt 0:00:05]} 32. h4 {[%emt 0:00:03]} (32. Bd1 $5 {[%cal Rh3h4]}) 32... Bf6 {[%emt 0:00:05]} (32... Bd2 $11) 33. Qf8+ {[%emt 0:00:08]} (33. Bc2 $14 Qg4 34. Kg2 (34. Qxb7 Bxd4 35. Kg2 Bc5 $11) (34. Qf8+ Bg7 $11) 34... Qxd4 35. Qxe6) 33... Bg7 {[%emt 0:00:04] The position is equal.} 34. Qxf5 {[%emt 0:00:04]} exf5 {[%emt 0:00:02] KB-KB} 35. Bb3 {[%emt 0:00:02]} Bxd4 {[%emt 0:00:01]} 36. Bxd5 {[%emt 0:00:01]} Bxb2 {[%emt 0:00:02]} 37. Bxb7 {[%emt 0:00:02]} a5 {[%emt 0:00:01]} 38. Kg2 {[%emt 0:00:01]} Kg7 {[%emt 0:00:01]} 39. Kf3 {[%emt 0:00:02]} Bd4 {[%emt 0:00:02]} 40. Ke2 {[%emt 0:00:02]} Kf6 {[%emt 0:00:01]} 41. f3 {[%emt 0:00:01]} h6 {[%emt 0:00:02]} 42. g4 {[%emt 0:00:02]} fxg4 {[%emt 0:00:01]} 43. fxg4 {[%emt 0:00:00]} g5 {[%emt 0:00:02]} 44. h5 {[%emt 0:00:02]} Be5 {[%emt 0:00:01]} 45. Kd3 {[%emt 0:00:01]} Bf4 {[%emt 0:00:01]} 46. Kc4 {[%emt 0:00:02]} Ke5 {[%emt 0:00:01]} 47. Kb5 {[%emt 0:00:04]} Bd2 {[%emt 0:00:01]} 48. Kc6 {[%emt 0:00:03]} Bc3 {[%emt 0:00:06]} (48... Kf4 $5 49. Bc8 Ke5 $11) 49. Bc8 {[%emt 0:00:05]} Kf6 {[%emt 0:00:02]} 50. Kd6 {[%emt 0:00:03]} Bb4+ {[%emt 0:00:02]} 51. Kd5 {[%emt 0:00:02]} Ba3 {[%emt 0:00:04]} 52. Bf5 {[%emt 0:00:04]} Bb4 {[%emt 0:00:01]} 53. Bg6 {[%emt 0:00:02]} Ba3 {[%emt 0:00:01]} 54. Bf5 {[%emt 0:00:01]} Bb4 {[%emt 0:00:01]} 55. Bg6 {[%emt 0:00:01]} Ba3 {[%emt 0:00:01]} 56. Bf5 {[%emt 0:00:01] Weighted Error Value: White=0.15 (very precise) /Black=0.13 (very precise)} 1/2-1/2

[Event "Queens Festival Final-A 2022"]
[Site "Tornelo"]
[Date "2022.06.25"]
[Round "3.4"]
[White "Yuan, Ye"]
[Black "Alboredo, Julia"]
[Result "1-0"]
[ECO "E81"]
[WhiteElo "2108"]
[BlackElo "2252"]
[Annotator "TA"]
[PlyCount "61"]
[EventDate "2022.06.24"]
[EventType "tourn"]
[EventCountry "NET"]
[SourceTitle "playchess.com"]
[Source "ChessBase"]
[SourceQuality "1"]
[TimeControl "180+2"]

{[%evp 15,61,20,50,8,25,0,10,-8,0,0,0,0,18,16,7,-13,19,5,47,45,38,-27,-21,-29,42,45,23,25,676,30,145,142,441,435,693,0,0,0,162,0,645,600,29973,29974,29991,29989,29995,29992]} 1. d4 {[%emt 0:00:02] King,D} Nf6 {[%emt 0:00:04]} 2. c4 {[%emt 0:00:04]} g6 {[%emt 0:00:02]} 3. Nc3 {[%emt 0:00:03]} Bg7 {[%emt 0:00:01]} 4. e4 {[%emt 0:00:02]} d6 {[%emt 0:00:01]} 5. f3 {[%emt 0:00:04]} O-O {[%emt 0:00:02]} 6. Be3 {[%emt 0:00:03]} c6 {[%emt 0:00:02]} 7. Qd2 {[%emt 0:00:06]} a6 {[%emt 0:00:01]} 8. Nge2 {[%emt 0:00:12]} b5 {[%emt 0:00:02]} 9. Ng3 {[%emt 0:00:07] E81: King's Indian: Sämisch: 6th move deviations (including 6 Be3 c6).} h5 {[%emt 0:00:06]} 10. h4 {[%emt 0:00:10]} ({Reject} 10. cxb5 axb5 11. Bd3 Nbd7 $11) 10... Nbd7 {[%emt 0:00:04]} 11. Bh6 {[%emt 0:00:02] The position is equal.} e5 {[%emt 0:00:09] And now ...Bxh6 would win.} 12. d5 {[%emt 0:00:08]} cxd5 {[%emt 0:00:06]} 13. cxd5 {[%emt 0:00:03] [#]} Nb6 $146 {[%emt 0:00:28]} ({Predecessor:} 13... Nh7 14. Be2 Bf6 15. Bxf8 Ndxf8 16. Bd3 Bxh4 17. Qf2 Qg5 18. Nce2 Bd7 19. O-O Qd2 {0-1 (35) Neiman,E (2315)-Relange,E (2505) Narbonne 1997 CBM 061 [King,D]}) 14. Bxg7 {[%emt 0:00:16]} Kxg7 {[%emt 0:00:01]} 15. Qg5 {[%emt 0:00:02]} b4 {[%emt 0:00:13]} 16. Nd1 {[%emt 0:00:05]} Bd7 {[%emt 0:00:33]} 17. Ne3 {[%emt 0:00:04]} Kh7 {[%emt 0:00:28]} 18. f4 {[%emt 0:00:19]} (18. b3 $14) 18... exf4 $11 {[%emt 0:00:04]} 19. Qxf4 {[%emt 0:00:01]} Bb5 {[%emt 0:00:07]} (19... Ng4 $11) 20. Bxb5 $14 {[%emt 0:00:03]} axb5 {[%emt 0:00:00]} 21. O-O $40 {[%emt 0:00:06][%mdl 128] Black needs to defend precisely.} Nfd7 {[%emt 0:00:14][%mdl 8192] [#]} (21... Ne8 $11) 22. Qxd6 $2 {[%emt 0:00:10]} (22. Nef5 $1 $18 {[%mdl 512] Qh6+ would kill now.} g5 23. hxg5) 22... Qxh4 {[%emt 0:00:02]} (22... Nc4 $11 {keeps the balance.} 23. Nxc4 bxc4) 23. Rf3 $1 $16 {[%emt 0:00:12][%cal Og3h5] Black must now prevent Nxh5!} Rad8 $2 {[%emt 0:00:14][%mdl 8192]} (23... Qg5 $16 {was necessary.}) 24. Raf1 $18 {[%emt 0:00:05]} Kg8 {[%emt 0:00:02] [#]} (24... Qg5 $142 25. Rxf7+ Rxf7 26. Rxf7+ Kg8) 25. e5 $2 {[%emt 0:00:04]} (25. Ngf5 $1 $18 {[%mdl 512]} Qxe4 (25... Nc8 26. Qxf8+) 26. Rg3) 25... Nc4 $11 {[%emt 0:00:17]} 26. Nxc4 {[%emt 0:00:06]} Qxc4 {[%emt 0:00:04] [#]} (26... bxc4 $11 {and Black stays safe.} 27. Rxf7 Qd4+ 28. R1f2 Rxf7 29. Qxg6+ Rg7 30. Qxg7+ Kxg7 31. Nf5+ Kh7 32. Nxd4 Nxe5) 27. e6 $2 {[%emt 0:00:04] Chess con chili.} (27. Nf5 $1 $18 {[%mdl 512]} Qc5+ 28. Qxc5 Nxc5 29. Nd6) 27... fxe6 $2 {[%emt 0:00:18][%mdl 8192]} (27... Qd4+ $11 28. Kh2 Qh4+ 29. Kg1 Qd4+ 30. Kh2 Qh4+ 31. Kg1 Qd4+) 28. Rxf8+ {[%emt 0:00:10][%mdl 64] Remove Defender} Nxf8 {[%emt 0:00:03]} 29. Qxd8 {[%emt 0:00:05] White mates.} Qd4+ {[%emt 0:00:00]} 30. Rf2 {[%emt 0:00:02]} Qd1+ {[%emt 0:00:03]} 31. Nf1 {[%emt 0:00:01] Weighted Error Value: White=0.68/Black=1.18} 1-0

[Event "Queens Festival Final-A 2022"]
[Site "Tornelo"]
[Date "2022.06.25"]
[Round "4.1"]
[White "Castrillon Gomez, Melissa"]
[Black "Yuan, Ye"]
[Result "0-1"]
[ECO "D46"]
[WhiteElo "2198"]
[BlackElo "2108"]
[Annotator "RC"]
[PlyCount "98"]
[EventDate "2022.06.24"]
[EventType "tourn"]
[EventCountry "NET"]
[SourceTitle "playchess.com"]
[Source "ChessBase"]
[SourceQuality "1"]
[TimeControl "180+2"]

1. d4 {[%emt 0:00:02]} d5 {[%emt 0:00:04]} 2. c4 {[%emt 0:00:03]} c6 {[%emt 0:00:02]} 3. Nf3 {[%emt 0:00:02]} Nf6 {[%emt 0:00:01]} 4. e3 {[%emt 0:00:02]} e6 {[%emt 0:00:04]} 5. Bd3 {[%emt 0:00:04]} Nbd7 {[%emt 0:00:08]} 6. Nbd2 {[%emt 0:00:02]} Bd6 {[%emt 0:00:06]} 7. O-O {[%emt 0:00:01]} O-O {[%emt 0:00:06]} 8. e4 {[%emt 0:00:03]} dxe4 {[%emt 0:00:02]} 9. Nxe4 {[%emt 0:00:03]} Nxe4 {[%emt 0:00:02]} 10. Bxe4 {[%emt 0:00:02]} e5 {[%emt 0:00:08]} 11. d5 {[%emt 0:00:53]} Nf6 {[%emt 0:00:25]} 12. Bc2 {[%emt 0:00:06]} cxd5 {[%emt 0:00:04]} 13. cxd5 {[%emt 0:00:02]} e4 {[%emt 0:00:01]} 14. Ng5 {[%emt 0:00:35]} Bf5 {[%emt 0:00:08]} 15. Re1 {[%emt 0:00:17]} Re8 {[%emt 0:00:02]} 16. Ba4 {[%emt 0:00:12]} Re7 {[%emt 0:00:03]} 17. f3 {[%emt 0:00:25]} h6 {[%emt 0:00:04]} 18. Nxe4 {[%emt 0:00:05]} Nxe4 {[%emt 0:00:37]} 19. fxe4 {[%emt 0:00:00]} Bxe4 {[%emt 0:00:01]} 20. Be3 {[%emt 0:00:12]} Bxd5 {[%emt 0:00:10]} 21. Bd4 {[%emt 0:00:19]} Rxe1+ {[%emt 0:00:09]} 22. Qxe1 {[%emt 0:00:01]} Qg5 {[%emt 0:00:05]} 23. Qf2 {[%emt 0:00:05]} Qh5 {[%emt 0:00:07]} 24. h3 {[%emt 0:00:03]} a6 {[%emt 0:00:06]} 25. Bb3 {[%emt 0:00:02]} Bxb3 {[%emt 0:00:04]} 26. axb3 {[%emt 0:00:00]} Qd5 {[%emt 0:00:06]} 27. Rf1 {[%emt 0:00:02]} Qxb3 {[%emt 0:00:03]} 28. Kh1 {[%emt 0:00:03]} Qd5 {[%emt 0:00:04]} 29. Bc3 {[%emt 0:00:02]} Re8 {[%emt 0:00:06]} 30. Re1 {[%emt 0:00:06]} Rc8 {[%emt 0:00:06]} 31. Rf1 {[%emt 0:00:02]} b5 {[%emt 0:00:02]} 32. Qf3 {[%emt 0:00:04]} Qxf3 {[%emt 0:00:05]} 33. Rxf3 {[%emt 0:00:00]} b4 {[%emt 0:00:01]} 34. Be1 {[%emt 0:00:04]} Rc1 {[%emt 0:00:11]} 35. Re3 {[%emt 0:00:01]} f5 {[%emt 0:00:01]} 36. g3 {[%emt 0:00:03]} Bxg3 {[%emt 0:00:07]} 37. Rxg3 {[%emt 0:00:02]} Rxe1+ {[%emt 0:00:02]} 38. Kg2 {[%emt 0:00:01]} Re2+ {[%emt 0:00:01]} 39. Kf3 {[%emt 0:00:01]} Rxb2 {[%emt 0:00:02]} 40. Rg6 {[%emt 0:00:01]} a5 {[%emt 0:00:04]} 41. Ra6 {[%emt 0:00:02]} Ra2 {[%emt 0:00:03]} 42. Kf4 {[%emt 0:00:01]} b3 {[%emt 0:00:02]} 43. Kxf5 {[%emt 0:00:04]} Rf2+ {[%emt 0:00:07]} 44. Ke4 {[%emt 0:00:03]} b2 {[%emt 0:00:02]} 45. Rb6 {[%emt 0:00:02]} a4 {[%emt 0:00:01]} 46. Ke3 {[%emt 0:00:02]} Rh2 {[%emt 0:00:04]} 47. Kf3 {[%emt 0:00:02]} a3 {[%emt 0:00:01]} 48. Kg3 {[%emt 0:00:01]} Rc2 {[%emt 0:00:02]} 49. Kh4 {[%emt 0:00:02]} a2 {[%emt 0:00:01]} 0-1

[Event "Queens Festival Final-A 2022"]
[Site "Tornelo"]
[Date "2022.06.25"]
[Round "4.2"]
[White "Ismayil, Malak"]
[Black "Gueci, Tea"]
[Result "1-0"]
[ECO "C50"]
[WhiteElo "2001"]
[BlackElo "2248"]
[Annotator "TA"]
[PlyCount "89"]
[EventDate "2022.06.24"]
[EventType "tourn"]
[EventCountry "NET"]
[SourceTitle "playchess.com"]
[Source "ChessBase"]
[SourceQuality "1"]
[TimeControl "180+2"]

{[%evp 17,89,5,10,0,64,64,105,56,178,166,200,120,125,130,162,152,160,111,113,107,162,82,125,95,181,164,175,170,186,192,205,199,180,197,222,216,222,221,221,222,234,231,233,184,203,182,261,170,293,297,367,353,520,505,29968,5844,29989,29990,29990,29976,29963,1171,29994,29987,29995,29996,29996,29997,29998,29997,29997,29997,29997,29998]} 1. e4 {[%emt 0:00:02]} e5 {[%emt 0:00:04]} 2. Nf3 {[%emt 0:00:02]} Nc6 {[%emt 0:00:02]} 3. Bc4 {[%emt 0:00:01]} Nf6 {[%emt 0:00:03]} 4. d3 {[%emt 0:00:03]} h6 {[%emt 0:00:04]} 5. O-O {[%emt 0:00:01]} Bc5 {[%emt 0:00:05]} 6. Nc3 {[%emt 0:00:03]} d6 {[%emt 0:00:04]} 7. h3 {[%emt 0:00:02]} a6 {[%emt 0:00:12]} 8. Be3 {[%emt 0:00:02]} Ba7 {[%emt 0:00:23]} 9. a3 {[%emt 0:00:06]} O-O {[%emt 0:00:10]} 10. Qd2 {[%emt 0:00:05] [#] C50: Hungarian Defence and Giuoco Pianissimo.} Nh5 $146 {[%emt 0:00:06] [#]} (10... b5 $11 11. Bb3 Bxe3 12. fxe3 Be6) ({Predecessor:} 10... Nd4 11. Bxd4 exd4 12. Ne2 b5 13. Bb3 c5 14. Nf4 Rb8 15. Rfe1 Nh7 16. e5 dxe5 17. Nxe5 Rb6 {1-0 (40) Mimoune,K (1588)-Fayolle,G (1679) Montigny le Bretonneux 2021}) 11. Bxh6 $1 $14 {[%emt 0:00:36] White is more active.} Nd4 {[%emt 0:00:46] [#]} (11... Bxh3 12. Bg5) 12. Nxd4 {[%emt 0:00:34] White is better.} Bxd4 {[%emt 0:00:00]} (12... exd4 $14 13. Nd5 gxh6) 13. Bg5 $18 {[%emt 0:00:10]} Qd7 {[%emt 0:00:13]} 14. Kh1 {[%emt 0:00:18]} b5 {[%emt 0:00:15]} 15. Bb3 {[%emt 0:00:08]} Kh7 {[%emt 0:00:20]} 16. Qe2 {[%emt 0:00:05]} g6 {[%emt 0:00:02]} 17. Nd5 {[%emt 0:00:07]} (17. Qf3 $142) 17... f6 $16 {[%emt 0:00:07]} 18. Be3 {[%emt 0:00:29] Strongly threatening Bxd4.} c6 {[%emt 0:00:01]} (18... Bxb2 $16 19. Ra2 Bd4) 19. Nc3 {[%emt 0:00:07]} (19. Bxd4 $18 {aiming for Nb6.} cxd5 20. Be3 (20. Bxd5 Nf4 $15)) 19... a5 {[%emt 0:00:10]} 20. Qd2 {[%emt 0:00:08]} Rh8 {[%emt 0:00:07]} (20... Bxe3 $16 21. Qxe3 Qa7) 21. Bxd4 $18 {[%emt 0:00:09]} exd4 {[%emt 0:00:00]} 22. Ne2 {[%emt 0:00:02]} c5 {[%emt 0:00:02]} 23. Bd5 {[%emt 0:00:02]} Bb7 {[%emt 0:00:02]} 24. Bxb7 {[%emt 0:00:06]} Qxb7 {[%emt 0:00:00]} 25. c3 {[%emt 0:00:01]} d5 {[%emt 0:00:09]} 26. cxd4 {[%emt 0:00:04]} cxd4 {[%emt 0:00:04]} 27. Nxd4 {[%emt 0:00:03]} dxe4 {[%emt 0:00:01]} 28. dxe4 {[%emt 0:00:04]} Qxe4 {[%emt 0:00:00]} 29. Rae1 {[%emt 0:00:02]} Qb7 {[%emt 0:00:10]} 30. Kg1 {[%emt 0:00:09]} Ng7 {[%emt 0:00:02]} 31. Nf3 {[%emt 0:00:02]} Rad8 {[%emt 0:00:03]} (31... Rhd8 {keeps fighting.} 32. Qf4 Nh5) 32. Qf4 {[%emt 0:00:01]} Nf5 {[%emt 0:00:03]} (32... Nh5 {was worth a try.} 33. Qg4 Rhe8 34. Rxe8 Rxe8) 33. Re6 {[%emt 0:00:02]} Kg7 {[%emt 0:00:02]} 34. Rfe1 {[%emt 0:00:01]} Rhf8 {[%emt 0:00:05]} (34... Qd5 $142 35. Re7+ Kf8) 35. g4 {[%emt 0:00:04][%cal Bg2g4,Bg4f5][%mdl 32]} Rf7 {[%emt 0:00:10]} (35... Rd5 $18 36. Qe4 Rf7 37. gxf5 Rxf5) 36. gxf5 {[%emt 0:00:02]} g5 {[%emt 0:00:03] [#]} 37. Nxg5 $1 {[%emt 0:00:02]} Rg8 {[%emt 0:00:04]} 38. Ne4 {[%emt 0:00:05]} Kh8+ {[%emt 0:00:02]} 39. Ng3 {[%emt 0:00:02]} (39. Kf1 $142 Qc7 40. Nd6 Rh7 41. Rxf6 Rd8 42. Rg6 Rf8 43. Qd4+ Rg7 44. Rh6+ Kg8 45. Qd5+ Qf7 46. Nxf7) 39... Qa8 {[%emt 0:00:02]} 40. Qh4+ {[%emt 0:00:01] White mates.} Rh7 {[%emt 0:00:01]} 41. Qxf6+ {[%emt 0:00:03]} Rhg7 {[%emt 0:00:01]} 42. Re7 {[%emt 0:00:02]} Qf3 {[%emt 0:00:03]} 43. Rxg7 {[%emt 0:00:02]} Rxg7 {[%emt 0:00:00]} 44. Re7 {[%emt 0:00:02][%csl Ge7][%cal Rf6g7]} Qd1+ {[%emt 0:00:03]} 45. Kh2 {[%emt 0:00:02] Weighted Error Value: White=0.18 (very precise) /Black=0.78} 1-0